bitfinex/quotes_ETHUSD_20251017
["timestamp","ask_amount","ask_price","bid_price","bid_amount"]
[1760711515544,2.86,3750.0,3749.1,0.02667306]
[1760711515786,2.86,3750.0,3748.6,0.4429]
[1760711515943,2.86,3750.0,3749.2,0.1642]
[1760711516149,2.86,3750.0,3749.0,2.66736324]
[1760711516466,2.86,3750.0,3749.6,2.66693856]
[1760711516784,2.86,3750.0,3749.1,0.1642]
[1760711517583,0.235,3749.9,3748.0,0.6071]
[1760711517778,0.235,3749.9,3748.5,2.66766891]
[1760711517779,2.66709443,3749.4,3748.5,2.66766891]
[1760711518077,2.66732116,3749.1,3748.2,2.66789648]
[1760711518279,2.864,3749.3,3748.3,0.02667876]
[1760711518486,2.864,3749.3,3748.2,0.4429]
[1760711519080,2.864,3749.3,3748.3,0.02667876]
[1760711519267,2.864,3749.3,3748.8,2.66750519]
[1760711519446,2.864,3749.3,3749.2,2.83143567]
[1760711519646,2.864,3749.3,3749.2,3.15886924]
[1760711519848,2.863,3749.9,3749.2,0.49163357]
[1760711520083,2.863,3749.9,3749.8,2.66680889]
[1760711520495,2.864,3750.9,3749.9,2.66673777]
[1760711520696,2.66616898,3750.7,3749.2,0.1642]
[1760711520850,2.66671652,3750.0,3749.2,2.66723408]
[1760711521051,2.865,3749.9,3749.4,2.66708727]
[1760711521244,0.02493168,3749.8,3748.6,0.4429]
[1760711521472,2.865,3749.9,3748.7,0.46547591]
[1760711521672,2.88993168,3749.8,3748.2,2.1668]
[1760711521988,0.235,3750.8,3748.9,2.3616]
[1760711522185,0.002,3751.0,3749.7,0.1642]
[1760711522384,0.69,3750.7,3750.0,2.66665223]
[1760711522550,0.69,3750.7,3749.5,2.66702226]
[1760711522753,0.69,3750.7,3749.4,0.1642]
[1760711522992,0.69,3750.7,3750.6,2.66624006]
[1760711523293,0.69,3750.7,3748.6,1.728]
[1760711523294,1.1209,3750.7,3748.6,1.728]
[1760711523589,1.1209,3750.7,3750.1,0.1328]
[1760711523590,0.13516,3750.6,3750.1,0.1328]
[1760711523762,3.91987674,3750.7,3750.1,0.1328]
[1760711524085,3.91987674,3750.7,3750.0,2.66661791]
[1760711524086,0.69,3750.7,3750.0,2.66661791]
[1760711524382,0.45583168,3750.6,3749.1,0.1642]
[1760711524584,0.45583168,3750.6,3749.6,0.1328]
[1760711524585,2.7993856,3750.2,3749.6,0.1328]
[1760711524900,0.69,3750.7,3749.3,2.66716453]
[1760711524901,2.867,3750.7,3749.3,2.66716453]
[1760711525054,2.867,3750.7,3750.3,2.66644115]
[1760711525387,2.869,3750.9,3750.2,0.1642]
[1760711525585,0.002,3751.0,3750.3,0.02666453]
[1760711525802,0.002,3751.0,3750.2,0.1642]
[1760711525969,0.002,3751.0,3750.8,2.66603128]
[1760711526289,0.002,3751.0,3750.5,2.66625786]
[1760711526495,0.002,3751.0,3750.1,2.6675784]
[1760711526496,0.6616,3750.9,3750.1,2.6675784]
[1760711526699,0.61978485,3750.8,3750.1,0.001]
[1760711526852,0.59485317,3750.8,3750.1,0.001]
[1760711527252,2.868,3750.7,3750.3,2.66644537]
[1760711527493,0.45583168,3750.6,3750.1,0.001]
[1760711527684,2.868,3750.7,3750.1,0.001]
[1760711527849,0.4309,3750.5,3750.1,0.001]
[1760711528057,0.02493168,3750.4,3750.1,0.001]
[1760711528378,0.2307,3750.9,3750.1,0.001]
[1760711528550,0.002,3751.0,3750.1,0.001]
[1760711528551,3.0997,3750.8,3750.1,0.001]
[1760711528978,3.0997,3750.8,3750.5,2.66625188]
[1760711529196,2.869,3750.8,3750.1,0.001]
[1760711529393,2.869,3750.8,3750.3,2.66640066]
[1760711529579,2.869,3750.8,3750.1,2.66659555]
[1760711529908,2.869,3750.8,3750.6,2.66622552]
[1760711530265,2.869,3750.8,3750.2,0.1642]
[1760711530471,0.002,3751.0,3750.2,0.1642]
[1760711530720,0.002,3751.0,3750.9,2.66602682]
[1760711530873,0.002,3751.0,3750.9,3.22590115]
[1760711531068,0.002,3751.0,3750.9,3.63804089]
[1760711531288,2.869,3751.4,3751.3,2.66574254]
[1760711531289,0.002,3751.4,3751.3,2.66574254]
[1760711531484,0.002,3751.4,3751.3,15.29105054]
[1760711531779,0.002,3751.4,3751.3,7.74314254]
[1760711531982,0.002,3751.4,3751.3,8.16666526]
[1760711532186,0.002,3751.4,3751.3,2.66574254]
[1760711532683,0.002,3751.4,3749.8,0.13553617]
[1760711532895,0.002,3751.4,3748.1,0.05]
[1760711532896,16.0055884,3751.1,3748.1,0.4388]
[1760711533073,2.66682481,3749.8,3748.1,0.4388]
[1760711533407,3.56253168,3749.7,3748.0,0.1642]
[1760711533592,1.728,3749.5,3746.4,0.53085059]
[1760711533767,2.66744911,3748.9,3746.5,0.4388]
[1760711533968,3.56153168,3748.8,3746.5,0.4388]
[1760711534169,3.56153168,3748.8,3746.9,2.6688353]
[1760711534411,2.66829933,3747.8,3746.9,2.6688353]
[1760711534704,0.1328,3748.0,3747.3,0.1328]
[1760711534870,2.875,3747.7,3747.6,0.1328]
[1760711535068,3.3059,3747.7,3747.6,0.1328]
[1760711535315,3.3059,3747.7,3747.3,0.1328]
[1760711535524,0.45583168,3747.6,3747.3,0.1328]
[1760711535827,0.4309,3747.6,3747.3,0.1328]
[1760711536128,2.875,3747.7,3747.3,0.1328]
[1760711536129,0.45583168,3747.5,3747.3,0.1328]
[1760711536305,0.4309,3747.5,3746.3,0.003]
[1760711536508,2.89992912,3746.4,3746.3,0.003]
[1760711536691,0.2307,3746.4,3746.3,0.003]
[1760711536895,0.6616,3746.4,3746.3,0.003]
[1760711537129,0.4309,3746.9,3746.3,0.003]
[1760711537308,0.2307,3746.7,3746.3,0.003]
[1760711537508,0.83693168,3746.6,3746.3,0.003]
[1760711537708,1.2429,3746.6,3746.3,0.003]
[1760711537940,0.4309,3746.5,3746.3,0.003]
[1760711538141,0.2307,3747.1,3746.3,0.003]
[1760711538298,0.4309,3746.4,3745.1,0.1672]
[1760711538629,0.2307,3745.9,3744.4,0.1672]
[1760711538802,0.2307,3745.9,3744.0,0.03622598]
[1760711538803,6.22318541,3745.9,3744.0,0.03622598]
[1760711539006,7.11245123,3745.9,3744.1,0.1672]
[1760711539247,10.76405123,3745.9,3744.0,0.03622598]
[1760711539408,5.78339996,3745.9,3744.1,0.1672]
[1760711539595,0.70813414,3745.9,3744.4,0.02670654]
[1760711539819,2.9,3745.8,3744.5,2.67058352]
[1760711540145,2.44993168,3745.7,3744.3,0.6]
[1760711540310,0.4309,3745.6,3744.4,2.67065484]
[1760711540513,2.66994179,3745.4,3744.3,0.6]
[1760711540696,0.31008418,3745.3,3744.4,2.67059535]
[1760711540898,5.0947965,3745.7,3744.3,0.6]
[1760711541100,2.425,3745.7,3744.3,0.6]
[1760711541344,0.2307,3744.4,3744.0,0.03622598]
[1760711541552,0.2307,3744.4,3740.4,0.6]
[1760711541553,17.48943,3742.1,3737.0,0.1485]
[1760711541781,6.9113263,3742.0,3738.0,0.2232]
[1760711541898,4.318513,3740.9,3738.0,0.2232]
[1760711542098,0.6336,3740.7,3737.4,0.13955729]
[1760711542300,1.4253,3741.9,3737.4,0.13955729]
[1760711542301,16.147538,3740.2,3737.5,2.67558528]
[1760711542503,14.686524,3740.5,3737.6,0.74023426]
[1760711542850,2.954,3740.4,3737.8,19.010248]
[1760711543056,2.954,3740.4,3738.1,13.16345616]
[1760711543345,0.04659017,3741.2,3738.3,30.0]
[1760711543638,0.2879,3742.3,3739.1,1.728]
[1760711543853,0.2879,3742.3,3740.8,2.67319532]
[1760711544008,0.2879,3743.4,3741.9,2.67242802]
[1760711544201,2.97,3743.3,3742.0,0.73036647]
[1760711544399,2.97,3743.2,3742.0,0.7036428]
[1760711544599,2.971,3743.1,3743.0,2.67165375]
[1760711544916,1.4899,3744.2,3743.0,2.67165375]
[1760711544917,1.202,3744.2,3743.0,0.4364]
[1760711545117,2.971,3743.8,3743.7,2.6711542]
[1760711545517,0.2879,3745.4,3744.3,2.67066457]
[1760711545835,2.99593168,3745.3,3743.1,0.6596]
[1760711546060,2.99593168,3745.3,3743.1,3.33115258]
[1760711546061,0.02493168,3745.2,3743.1,3.33115258]
[1760711546331,2.971,3745.3,3743.2,0.33311526]
[1760711546531,0.1328,3744.8,3744.2,0.1328]
[1760711546737,0.02493168,3744.7,3742.5,1.728]
[1760711546900,2.6708601,3744.2,3742.4,0.4364]
[1760711547101,2.67095421,3744.0,3742.6,2.67188117]
[1760711547315,2.67109612,3743.8,3742.0,0.6387]
[1760711547523,2.6711542,3743.7,3742.0,0.6387]
[1760711547700,0.2879,3743.7,3742.1,0.02672296]
[1760711548035,0.2233,3743.9,3743.0,2.67164059]
[1760711548214,0.02493168,3743.8,3742.1,0.2023]
[1760711548414,2.95906357,3743.7,3741.6,0.02672653]
[1760711548614,0.31823636,3743.6,3741.8,2.67251055]
[1760711548803,0.2233,3743.9,3741.7,0.48619748]
[1760711548804,0.2233,3743.9,3741.7,0.45947167]
[1760711549008,0.31283168,3743.8,3741.6,0.4364]
[1760711549209,2.6708227,3743.1,3742.1,2.67228541]
[1760711549431,2.974,3743.0,3741.5,0.1672]
[1760711549741,2.974,3743.0,3740.8,0.2232]
[1760711549742,2.67200834,3742.6,3740.8,0.2232]
[1760711549926,2.69700697,3742.5,3740.8,0.2232]
[1760711550127,2.69700697,3742.5,3740.3,0.4364]
[1760711550128,0.2879,3742.4,3740.3,0.4364]
[1760711550327,0.2879,3742.4,3740.0,0.2232]
[1760711550328,0.02493168,3742.3,3740.0,0.2232]
[1760711550553,2.672525,3741.8,3740.7,2.67325261]
[1760711550731,1.9513,3742.9,3740.0,0.2232]
[1760711550732,3.50813168,3741.7,3740.0,0.2232]
[1760711550901,3.50813168,3741.7,3739.6,0.4364]
[1760711550902,3.4832,3741.7,3739.6,0.4364]
[1760711551104,3.83152,3741.7,3739.7,2.67401128]
[1760711551303,2.972,3741.7,3739.8,0.4364]
[1760711551603,2.972,3741.7,3738.7,0.4364]
[1760711551604,3.246974,3741.5,3738.7,0.4364]
[1760711551801,0.02493168,3741.4,3738.7,0.4364]
[1760711552151,0.2879,3741.3,3739.8,2.67388074]
[1760711552303,0.2879,3741.3,3738.7,0.4364]
[1760711552507,0.3344727,3741.3,3738.7,0.4364]
[1760711552747,0.30072274,3741.2,3738.8,1.9303]
[1760711552913,0.3344727,3741.3,3738.8,0.2023]
[1760711553117,0.3344727,3741.3,3739.1,2.67441399]
[1760711553432,3.28483168,3741.2,3738.8,0.2023]
[1760711553755,3.2599,3741.2,3739.2,2.67436884]
[1760711553960,2.972,3741.2,3739.3,0.46314297]
[1760711554119,0.2879,3741.1,3739.4,0.33607118]
[1760711554343,0.2879,3741.1,3739.3,0.4364]
[1760711554542,2.9609238,3741.1,3739.3,0.4364]
[1760711554742,0.2879,3741.1,3739.3,0.4364]
[1760711555152,0.2879,3741.1,3740.2,2.67362932]
[1760711555153,0.02493168,3741.0,3740.2,2.67362932]
[1760711555478,2.67328834,3740.8,3739.8,2.67389135]
[1760711555649,0.2233,3740.9,3739.9,2.67385914]
[1760711555851,3.27385727,3741.2,3739.9,2.67385914]
[1760711555852,2.972,3741.2,3740.0,2.70053061]
[1760711556144,1.203,3742.1,3741.1,0.1672]
[1760711556385,2.968,3742.0,3740.4,0.4364]
[1760711556677,2.99293168,3742.0,3740.6,2.6733679]
[1760711556861,0.1328,3742.7,3741.9,0.1336]
[1760711557045,2.99293168,3742.6,3741.9,0.1336]
[1760711557235,2.968,3742.6,3742.3,0.1336]
[1760711557433,2.968,3742.6,3741.4,2.67274003]
[1760711557434,2.67215857,3742.3,3741.4,2.67274003]
[1760711557642,0.02493168,3742.2,3740.7,1.728]
[1760711557842,3.5675984,3742.6,3741.7,2.6725598]
[1760711558117,3.5675984,3742.6,3740.8,0.4364]
[1760711558118,0.02493168,3742.5,3740.8,0.4364]
[1760711558244,0.02493168,3742.5,3740.9,2.67315351]
[1760711558445,2.67249185,3741.9,3741.0,2.67303037]
[1760711558746,0.94313435,3742.4,3740.7,3.10969159]
[1760711558943,2.968,3742.6,3741.1,0.1672]
[1760711559145,5.63994909,3742.6,3741.1,0.1672]
[1760711559372,0.31283168,3742.5,3739.9,2.97068347]
[1760711559547,2.6722044,3742.3,3740.2,0.4364]
[1760711559739,0.31283168,3742.5,3740.2,0.4364]
[1760711559740,0.2879,3742.5,3740.2,0.4364]
[1760711559940,2.67330778,3740.7,3739.6,2.67408278]
[1760711560153,2.67369212,3740.2,3738.8,0.6387]
[1760711560370,2.971,3740.1,3738.8,0.6387]
[1760711560539,2.971,3740.1,3739.4,2.67417052]
[1760711560735,2.971,3740.1,3738.8,0.6387]
[1760711560939,2.971,3740.1,3738.8,0.2023]
[1760711561139,2.971,3740.1,3738.9,0.28769621]
[1760711561439,2.971,3740.1,3739.0,2.67444158]
[1760711561659,2.971,3740.1,3738.3,2.87724963]
[1760711561660,0.02493168,3740.0,3738.3,0.2023]
[1760711561862,0.02493168,3740.0,3737.5,0.1672]
[1760711561863,0.2225,3739.1,3737.5,0.1672]
[1760711562183,2.977,3739.0,3738.8,2.67459155]
[1760711562339,2.977,3739.0,3738.3,0.2023]
[1760711562534,0.02493168,3738.9,3737.6,0.4364]
[1760711562867,0.2222,3738.9,3737.5,0.1672]
[1760711563039,2.8968134,3738.9,3738.0,2.67516053]
[1760711563237,2.67493955,3738.5,3737.2,2.67574086]
[1760711563438,0.31513168,3738.4,3737.1,0.99261313]
[1760711563661,2.977,3739.0,3737.2,0.463158]
[1760711563862,2.981,3739.6,3737.2,0.4364]
[1760711564064,0.02493168,3739.5,3737.6,1.728]
[1760711564380,2.96383197,3739.4,3737.6,2.67548426]
[1760711564573,0.2896,3739.4,3737.2,2.411014]
[1760711564775,2.981,3739.6,3737.8,3.159085]
[1760711565075,0.2896,3739.5,3738.3,2.67499123]
[1760711565293,1.728,3740.5,3737.1,1.15981313]
[1760711565294,0.2896,3740.6,3738.4,0.02674941]
[1760711565440,0.2896,3740.6,3738.5,3.634093]
[1760711565657,0.2896,3740.6,3739.9,2.67385337]
[1760711566008,1.019,3740.7,3739.4,0.2232]
[1760711566204,1.019,3740.7,3739.2,2.67436884]
[1760711566205,1.019,3740.7,3739.3,2.67424158]
[1760711566495,2.6733679,3740.6,3739.3,2.6742788]
[1760711566710,2.6733679,3740.6,3738.6,0.40972424]
[1760711566711,0.2889,3740.5,3738.6,0.40972424]
[1760711566998,0.31383168,3740.4,3738.2,0.2023]
[1760711567201,0.31383168,3740.4,3737.1,1.59621313]
[1760711567202,0.6336,3739.7,3737.1,1.59621313]
[1760711567407,1.728,3738.0,3737.1,0.99261313]
[1760711567692,0.36313168,3739.6,3737.8,0.1336]
[1760711567693,2.117,3739.0,3737.8,0.1336]
[1760711567859,0.2233,3739.6,3737.9,0.46315298]
[1760711568058,1.204,3740.5,3738.1,8.705919]
[1760711568059,0.5115,3740.4,3738.1,8.705919]
[1760711568260,0.5115,3740.4,3738.2,0.6387]
[1760711568261,2.421,3740.3,3738.2,0.6387]
[1760711568465,2.849962,3740.3,3738.3,2.6750127]
[1760711568661,0.2879,3740.2,3738.2,0.6387]
[1760711568894,2.6737253,3740.1,3738.2,0.6387]
[1760711569093,0.2879,3740.0,3737.5,0.4364]
[1760711569451,2.675282,3738.0,3737.1,0.99261313]
[1760711569571,3.008,3737.9,3737.1,3.66847132]
[1760711569764,1.728,3739.1,3737.1,3.66847132]
[1760711569765,3.016,3737.8,3737.2,0.193958]
[1760711570064,0.75406532,3739.4,3737.3,5.350834]
[1760711570066,3.016,3738.9,3737.3,5.350834]
[1760711570263,0.46616532,3739.4,3738.2,2.67506811]
[1760711570264,0.04662159,3739.4,3738.2,2.67506811]
[1760711570475,0.2879,3739.3,3737.4,2.44745033]
[1760711570676,0.04662159,3739.4,3737.5,0.02675585]
[1760711570961,0.2879,3739.3,3737.3,0.003]
[1760711571162,0.6336,3738.9,3737.3,0.003]
[1760711571518,2.89895687,3737.4,3737.3,0.003]
[1760711571669,5.92895687,3737.4,3737.3,0.0001]
[1760711572030,5.92895687,3737.4,3737.1,1e-08]
[1760711572031,3.30940006,3737.2,3737.1,1e-08]
[1760711572237,22.99166806,3737.2,3737.1,1e-08]
[1760711572510,22.99166806,3737.2,3733.4,3.14965361]
[1760711572511,12.6365041,3736.7,3736.6,1e-08]
[1760711572718,14.3698061,3736.7,3736.6,1e-08]
[1760711572879,2.67694613,3735.6,3733.4,0.4712]
[1760711573088,6.24452511,3735.6,3733.4,0.4712]
[1760711573270,6.24452511,3735.6,3735.5,1e-08]
[1760711573271,8.36852511,3735.6,3735.5,1e-08]
[1760711573613,0.2854,3735.6,3735.5,1e-08]
[1760711573778,3.038,3735.6,3735.5,1e-08]
[1760711574184,0.2233,3737.4,3735.5,0.47120001]
[1760711574426,3.043,3737.3,3735.6,0.02676946]
[1760711574579,3.043,3737.3,3735.8,8.626585]
[1760711574765,3.043,3737.3,3736.1,7.945736]
[1760711574963,0.4322,3738.5,3736.2,0.6413]
[1760711575164,3.046,3738.4,3737.6,2.67549898]
[1760711575401,3.046,3738.4,3737.9,2.67523373]
[1760711575602,3.046,3738.4,3737.7,2.67543615]
[1760711575900,3.3506,3738.4,3737.2,0.2232]
[1760711576104,3.3506,3738.4,3736.7,0.2232]
[1760711576275,2.6750133,3738.3,3737.1,2.67585924]
[1760711576477,3.3506,3738.4,3736.7,0.2232]
[1760711576905,3.046,3738.4,3736.8,0.4712]
[1760711577592,3.046,3738.4,3737.8,2.6753328]
[1760711577790,3.046,3738.4,3737.9,0.1336]
[1760711577972,3.046,3738.4,3738.2,0.1336]
[1760711578569,0.04662439,3739.1,3738.1,0.2156]
[1760711578797,0.1336,3739.3,3738.7,2.80827371]
[1760711578980,0.04661413,3739.9,3738.9,2.67458343]
[1760711579169,1.2654,3742.0,3738.7,8.62254637]
[1760711579171,2.67293916,3741.2,3740.0,2.67373285]
[1760711579393,2.67293916,3741.2,3738.7,2.95552234]
[1760711579394,3.043,3741.2,3739.9,0.2156]
[1760711579597,0.45093168,3741.1,3739.3,0.2156]
[1760711579792,0.45093168,3741.1,3739.2,2.67431373]
[1760711579793,0.426,3741.1,3739.2,2.67431373]
[1760711579970,0.37442006,3741.0,3739.3,2.67428669]
[1760711580169,0.6546,3740.9,3738.8,0.4712]
[1760711580519,2.67372293,3740.2,3739.1,2.67442995]
[1760711580670,3.043,3740.1,3738.8,0.4712]
[1760711581019,3.043,3740.4,3739.4,2.67420006]
[1760711581171,0.75523168,3740.3,3738.1,0.2156]
[1760711581372,1.728,3740.1,3737.6,0.6893]
[1760711581568,2.4583,3740.3,3737.8,5.298985]
[1760711581772,0.4325,3740.2,3737.7,0.4737]
[1760711582006,0.3043,3740.3,3737.8,3.026115]
[1760711582210,0.04660844,3740.2,3739.6,2.67401943]
[1760711582503,3.043,3740.4,3739.0,0.2156]
[1760711582703,2.993,3740.4,3739.0,0.2156]
[1760711583173,2.993,3740.4,3740.3,2.67358233]
[1760711583375,0.4475,3742.2,3740.8,2.67321627]
[1760711583570,0.04659374,3741.7,3740.3,0.4737]
[1760711583913,3.04,3741.9,3740.3,0.4737]
[1760711584225,3.04,3741.9,3741.3,2.67280107]
[1760711584520,3.04,3741.9,3740.5,2.67343937]
[1760711584719,3.04,3741.9,3741.1,0.2061]
[1760711585080,3.04,3741.9,3740.0,1.9341]
[1760711585081,2.67289062,3741.3,3740.0,0.2061]
[1760711585282,0.02493168,3741.2,3739.6,0.2061]
[1760711585591,2.2359,3741.8,3738.8,0.4737]
[1760711585592,0.4399,3741.1,3738.8,0.4737]
[1760711585780,3.04,3741.0,3738.9,2.67457741]
[1760711585979,1.01354923,3740.9,3738.8,0.4737]
[1760711586191,3.042,3740.8,3739.1,0.2061]
[1760711586404,3.042,3740.8,3740.3,2.67352691]
[1760711586627,3.042,3740.8,3739.7,0.02674011]
[1760711586808,3.042,3740.8,3739.4,2.67422581]
[1760711586993,1.205,3742.1,3739.2,0.4737]
[1760711586994,0.04658992,3741.5,3741.4,2.67279627]
[1760711587339,3.039,3741.8,3740.8,0.1966]
[1760711587483,3.039,3741.8,3740.2,0.4737]
[1760711587792,3.039,3741.8,3740.4,6.266582]
[1760711587983,3.039,3741.8,3740.0,0.2061]
[1760711588179,3.039,3741.8,3735.9,0.52592347]
[1760711588180,2.67276972,3741.5,3739.7,2.67400761]
[1760711588380,2.2447,3741.7,3739.5,0.4737]
[1760711588381,0.4472,3741.4,3739.5,0.4737]
[1760711588579,0.02493168,3741.3,3739.5,0.4737]
[1760711588815,2.67279955,3741.4,3739.5,0.4737]
[1760711589017,0.27193912,3741.3,3739.5,0.4737]
[1760711589226,0.04659161,3741.5,3739.6,3.314185]
[1760711589381,0.04659161,3741.5,3739.9,5.240259]
[1760711589577,3.039,3741.8,3741.4,2.67273121]
[1760711589887,3.039,3741.8,3740.6,0.2061]
[1760711590086,3.039,3741.8,3740.1,0.2061]
[1760711590420,4.0499209,3741.8,3740.2,3.14735381]
[1760711590732,2.67265759,3741.6,3740.2,0.4737]
[1760711590882,2.67278225,3741.5,3739.6,2.67408278]
[1760711591085,3.11600064,3741.7,3737.3,0.1966]
[1760711591086,0.221,3739.7,3737.3,0.1966]
[1760711591311,0.221,3739.7,3735.8,0.2061]
[1760711591312,1.728,3739.4,3736.5,0.2061]
[1760711591620,2.67444037,3739.1,3736.5,0.2061]
[1760711591820,2.67458343,3738.9,3736.6,0.02676229]
[1760711592117,0.4411,3739.0,3737.1,2.67583637]
[1760711592321,0.4411,3739.0,3737.2,0.1966]
[1760711592707,1.728,3739.5,3737.2,0.1966]
[1760711592910,0.04662208,3739.1,3737.3,2.67572846]
[1760711593222,0.04662208,3739.1,3737.4,0.02675656]
[1760711593383,2.72107025,3739.1,3738.0,2.67520218]
[1760711593578,0.4411,3739.0,3737.2,0.53122252]
[1760711593812,0.04662208,3739.1,3738.6,2.6747846]
[1760711594015,0.04662208,3739.1,3737.4,2.67565687]
[1760711594202,1.406,3739.6,3738.6,0.4737]
[1760711594611,1.406,3739.6,3738.3,2.6750127]
[1760711594919,0.41950478,3740.4,3738.4,0.50044941]
[1760711595222,1.728,3741.4,3740.3,2.67356082]
[1760711595223,0.4486,3741.4,3740.3,2.67356082]
[1760711595420,0.4486,3741.4,3739.7,0.02674011]
[1760711595619,0.4486,3741.4,3739.6,0.4737]
[1760711595919,3.12141386,3741.4,3740.6,2.67332103]
[1760711596125,1.02800044,3741.4,3740.3,2.67357103]
[1760711596292,0.4486,3741.4,3739.6,0.4737]
[1760711596482,1.382,3741.8,3739.6,0.4737]
[1760711596682,1.382,3741.8,3740.9,2.67315268]
[1760711596913,2.67258759,3741.7,3740.6,2.67335949]
[1760711597117,3.11869405,3742.0,3740.2,0.2061]
[1760711597118,0.4463,3742.0,3740.2,0.2061]
[1760711597324,3.041,3741.8,3740.2,0.2061]
[1760711597496,2.67258198,3741.7,3740.8,2.67316]
[1760711597702,3.041,3741.8,3740.6,2.6733623]
[1760711597899,3.041,3741.8,3741.3,2.67286572]
[1760711598264,3.041,3741.8,3741.7,2.67258198]
[1760711598384,2.67193929,3742.6,3741.3,3.14655973]
[1760711598584,3.039,3742.7,3740.2,0.2061]
[1760711598585,1.01369393,3742.5,3741.0,2.67307406]
[1760711598779,2.67279074,3741.5,3740.2,0.2061]
[1760711599028,2.67265341,3741.6,3740.2,0.2061]
[1760711599206,1.729,3741.5,3736.2,0.80382298]
[1760711599394,1.729,3741.5,3736.0,0.2061]
[1760711599395,2.99668,3740.1,3736.9,0.2156]
[1760711599594,1.728,3739.9,3736.9,0.2156]
[1760711599835,1.728,3739.9,3738.1,2.67815456]
[1760711600011,0.0466147,3739.6,3738.2,2.67508426]
[1760711600208,0.02493168,3739.5,3738.1,0.003]
[1760711600406,2.67415429,3739.5,3738.5,2.67481443]
[1760711600709,3.053,3740.0,3739.1,2.6744112]
[1760711600911,3.053,3740.0,3738.5,0.26748144]
[1760711601118,2.67421806,3739.5,3738.0,0.4737]
[1760711601283,3.054,3739.9,3738.1,0.2101]
[1760711601483,3.054,3739.9,3738.3,2.6750127]
[1760711601725,1.6487,3741.5,3740.2,2.67360554]
[1760711601883,3.054,3740.7,3739.9,2.67380592]
[1760711602090,2.67328253,3740.8,3739.2,2.8804553]
[1760711602289,3.053,3740.9,3740.6,2.67336471]
[1760711602497,3.053,3740.9,3740.8,2.67322497]
[1760711602715,1.205,3741.5,3740.3,0.2156]
[1760711602903,1.6307,3741.5,3740.5,2.67342728]
[1760711603102,1.6307,3741.5,3739.4,1.75474225]
[1760711603103,1.6307,3741.5,3739.7,2.88959497]
[1760711603320,0.46643168,3741.4,3739.1,3.052]
[1760711603521,2.67286771,3741.3,3739.3,0.02674297]
[1760711603743,0.4415,3741.4,3739.3,0.4344]
[1760711603944,2.67301061,3741.1,3738.1,0.2101]
[1760711604107,2.67395541,3739.8,3739.0,2.67449339]
[1760711604447,3.051,3740.0,3738.7,0.4344]
[1760711604614,3.051,3739.9,3738.5,0.4344]
[1760711604810,5.72470881,3740.2,3739.3,2.6742735]
[1760711605013,6.29713312,3740.2,3739.4,2.67421356]
[1760711605323,3.62347088,3740.2,3739.2,2.67435934]
[1760711605512,3.051,3740.2,3738.6,2.70154603]
[1760711605712,3.051,3740.2,3739.0,2.6745119]
[1760711606053,3.051,3740.2,3739.1,0.2061]
[1760711606546,0.4415,3740.1,3739.0,2.67448781]
[1760711606709,3.048,3740.1,3739.1,0.0267444]
[1760711606910,0.02493168,3740.0,3738.3,0.2061]
[1760711607256,3.3528,3740.1,3738.3,0.2061]
[1760711607638,3.3528,3740.1,3738.4,0.02674941]
[1760711607814,3.048,3740.1,3738.4,2.67494115]
[1760711608012,3.048,3740.1,3738.3,0.2061]
[1760711608337,0.46643168,3740.0,3738.1,0.004]
[1760711608535,2.67409217,3739.6,3738.7,2.67472404]
[1760711608735,0.2074,3739.9,3738.9,2.67458097]
[1760711608939,0.57709,3739.9,3738.1,0.004]
[1760711609250,0.57709,3739.9,3738.2,0.2061]
[1760711609251,0.4391,3739.8,3738.2,0.2061]
[1760711609547,3.048,3740.1,3739.6,0.1336]
[1760711609756,3.048,3740.1,3739.7,2.8075919]
[1760711610060,0.41939279,3741.4,3740.1,2.67371318]
[1760711610061,3.045,3740.9,3740.1,2.67371318]
[1760711610358,3.045,3740.9,3740.4,0.1336]
[1760711610359,2.67343937,3740.5,3740.4,0.1336]
[1760711610660,2.67343937,3740.5,3736.3,0.05]
[1760711610661,2.67351085,3740.4,3739.9,0.1336]
[1760711610900,2.80704953,3740.5,3739.9,0.1336]
[1760711611218,0.4368,3740.3,3739.9,0.1336]
[1760711611356,0.46173168,3740.2,3738.2,0.2061]
[1760711611687,3.044,3740.1,3738.3,0.02675012]
[1760711611902,3.044,3740.1,3738.6,2.67478504]
[1760711612046,3.044,3740.1,3739.4,2.67416901]
[1760711612256,0.04660254,3740.4,3739.5,0.02674154]
[1760711612482,3.08960254,3740.4,3738.9,0.4344]
[1760711612782,3.08960254,3740.4,3738.2,0.2061]
[1760711612990,2.67365381,3740.2,3739.3,2.67424426]
[1760711613152,2.69871893,3740.1,3739.2,2.6743527]
[1760711613353,2.69871893,3740.1,3738.6,2.67476415]
[1760711613354,2.6741402,3739.6,3738.3,8.689277]
[1760711613585,0.212,3739.8,3738.9,2.67454914]
[1760711613851,2.67407607,3739.7,3738.9,0.26745491]
[1760711614084,0.212,3740.1,3738.7,0.02674726]
[1760711614284,3.08960254,3740.4,3739.5,2.67414378]
[1760711614490,3.043,3740.4,3739.2,0.2061]
[1760711614793,3.043,3740.4,3739.9,2.67381818]
[1760711615090,3.043,3740.4,3739.3,2.67429732]
[1760711615382,3.043,3740.4,3739.2,0.2061]
[1760711615383,3.043,3740.4,3739.8,2.67393335]
[1760711615586,3.043,3740.4,3739.5,2.67415429]
[1760711615775,5.71653908,3740.4,3739.3,2.67427686]
[1760711615981,3.043,3740.4,3739.4,2.67422072]
[1760711616286,3.043,3740.4,3739.4,0.26742207]
[1760711616605,3.043,3740.4,3739.1,0.2061]
[1760711617068,3.043,3740.4,3740.3,2.67358233]
[1760711617375,3.4754,3740.4,3739.1,0.2061]
[1760711617573,3.4754,3740.4,3739.2,2.67436085]